[Event "Early-Titled-Tuesday-Blitz-January-23-2024"]
[Site "Chess.com"]
[Date "2024.01.23"]
[Round "11"]
[White "WhiteKnight2612"]
[Black "CarlosjPineror"]
[Result "1-0"]
[WhiteElo "2860"]
[BlackElo "2607"]
[TimeControl "180+1"]
[EndTime "10:08:05 PST"]
[Termination "WhiteKnight2612 won by resignation"]

1. e4 {[%clk 0:03:00.9]} 1... c5 {[%clk 0:02:52.1]} 2. Nf3 {[%clk 0:02:59.1]}
2... e6 {[%clk 0:02:51.7]} 3. d4 {[%clk 0:02:58.5]} 3... cxd4 {[%clk 0:02:52.6]}
4. Nxd4 {[%clk 0:02:58.6]} 4... a6 {[%clk 0:02:51.5]} 5. c4 {[%clk 0:02:58.7]}
5... Qc7 {[%clk 0:02:50.9]} 6. Nc3 {[%clk 0:02:58.9]} 6... Nf6 {[%clk
0:02:50.3]} 7. Be2 {[%clk 0:02:58.8]} 7... b6 {[%clk 0:02:50.1]} 8. O-O {[%clk
0:02:58.2]} 8... Bb7 {[%clk 0:02:50.8]} 9. Bf3 {[%clk 0:02:56.9]} 9... d6 {[%clk
0:02:49.5]} 10. Re1 {[%clk 0:02:51.5]} 10... Nbd7 {[%clk 0:02:49.3]} 11. Bg5
{[%clk 0:02:49.5]} 11... Be7 {[%clk 0:02:48.9]} 12. Rc1 {[%clk 0:02:40.2]} 12...
Rc8 {[%clk 0:02:49.1]} 13. g3 {[%clk 0:02:35.7]} 13... O-O {[%clk 0:02:48.6]}
14. Bg2 {[%clk 0:02:36]} 14... h6 {[%clk 0:02:48.5]} 15. Bf4 {[%clk 0:02:23.7]}
15... Ne5 {[%clk 0:02:36.7]} 16. b3 {[%clk 0:02:19.5]} 16... Rfd8 {[%clk
0:02:31.6]} 17. Qe2 {[%clk 0:02:16.8]} 17... Ng6 {[%clk 0:02:26.3]} 18. Be3
{[%clk 0:02:16.2]} 18... Ne5 {[%clk 0:02:17.1]} 19. h3 {[%clk 0:02:13.8]} 19...
Ned7 {[%clk 0:02:16.3]} 20. f4 {[%clk 0:02:11.2]} 20... Nc5 {[%clk 0:02:16.4]}
21. Bf2 {[%clk 0:02:11.5]} 21... Ncd7 {[%clk 0:02:13.8]} 22. Kh2 {[%clk
0:02:10.5]} 22... Qb8 {[%clk 0:02:08.4]} 23. f5 {[%clk 0:01:59.6]} 23... e5
{[%clk 0:02:06.3]} 24. Nc2 {[%clk 0:01:59]} 24... Nc5 {[%clk 0:01:55]} 25. Nb4
{[%clk 0:01:55.4]} 25... a5 {[%clk 0:01:53.2]} 26. Nbd5 {[%clk 0:01:55.3]} 26...
Bxd5 {[%clk 0:01:53.2]} 27. exd5 {[%clk 0:01:54]} 27... Re8 {[%clk 0:01:50.6]}
28. g4 {[%clk 0:01:53]} 28... Nh7 {[%clk 0:01:48.2]} 29. Ne4 {[%clk 0:01:41.7]}
29... Qc7 {[%clk 0:01:40.9]} 30. Rc3 {[%clk 0:01:38.3]} 30... Qd8 {[%clk
0:01:39]} 31. a4 {[%clk 0:01:36.9]} 31... Bh4 {[%clk 0:01:36.4]} 32. Bxh4 {[%clk
0:01:24.7]} 32... Qxh4 {[%clk 0:01:37.3]} 33. Nxd6 {[%clk 0:01:25]} 33... e4
{[%clk 0:01:24.5]} 34. Rg3 {[%clk 0:01:13.4]} 34... Rcd8 {[%clk 0:01:19.3]} 35.
Nxe8 {[%clk 0:01:12.5]} 35... Rxe8 {[%clk 0:01:20.2]} 36. d6 {[%clk 0:01:12.8]}
36... Ng5 {[%clk 0:01:18.1]} 37. Rd1 {[%clk 0:01:12]} 37... Nh7 {[%clk
0:01:15.3]} 38. d7 {[%clk 0:01:08]} 38... Rd8 {[%clk 0:01:15.2]} 39. Bxe4 {[%clk
0:01:08.1]} 39... Qe7 {[%clk 0:01:12.7]} 40. Bf3 {[%clk 0:01:05.8]} 40... Qxe2+
{[%clk 0:01:07.2]} 41. Bxe2 {[%clk 0:01:06.7]} 41... Nf6 {[%clk 0:01:06.5]} 42.
Re3 {[%clk 0:01:05.2]} 42... Nfxd7 {[%clk 0:01:05]} 43. Bf3 {[%clk 0:01:01.4]}
43... Rc8 {[%clk 0:01:03.4]} 44. Rd6 {[%clk 0:01:00.2]} 44... Kf8 {[%clk
0:01:01.9]} 45. Bc6 {[%clk 0:00:58]} 45... Nf6 {[%clk 0:00:55.9]} 46. Bb5 {[%clk
0:00:53.8]} 46... Rb8 {[%clk 0:00:55.7]} 47. Rd4 {[%clk 0:00:44.8]} 47... Ng8
{[%clk 0:00:37.4]} 48. Kg3 {[%clk 0:00:40.6]} 48... Nf6 {[%clk 0:00:38]} 49. Kf4
{[%clk 0:00:40.3]} 49... g5+ {[%clk 0:00:29.1]} 50. fxg6 {[%clk 0:00:39.8]}
50... Ne6+ {[%clk 0:00:25.4]} 51. Rxe6 {[%clk 0:00:38.2]} 51... fxe6 {[%clk
0:00:25.4]} 52. Rd6 {[%clk 0:00:35.8]} 52... Ke7 {[%clk 0:00:25.6]} 53. Ke5
{[%clk 0:00:35.7]} 53... Ng8 {[%clk 0:00:19.1]} 54. Rxe6+ {[%clk 0:00:35.3]}
54... Kf8 {[%clk 0:00:19.8]} 55. h4 {[%clk 0:00:32.6]} 55... Kg7 {[%clk
0:00:19.6]} 56. h5 {[%clk 0:00:33.2]} 56... Rd8 {[%clk 0:00:19.7]} 57. Rd6
{[%clk 0:00:31.8]} 57... Rxd6 {[%clk 0:00:20]} 58. Kxd6 {[%clk 0:00:31.9]} 58...
Nf6 {[%clk 0:00:20.8]} 59. Bd7 {[%clk 0:00:32.3]} 59... Ne4+ {[%clk 0:00:20.3]}
60. Kc6 {[%clk 0:00:32.6]} 60... Nc5 {[%clk 0:00:21.1]} 61. Bf5 {[%clk 0:00:32]}
61... Nxb3 {[%clk 0:00:20.9]} 62. Kxb6 {[%clk 0:00:32.7]} 62... Kf6 {[%clk
0:00:21.4]} 63. c5 {[%clk 0:00:32.9]} 63... Nd4 {[%clk 0:00:21.7]} 64. c6 {[%clk
0:00:33.2]} 1-0

[Event "Early-Titled-Tuesday-Blitz-January-23-2024"]
[Site "Chess.com"]
[Date "2024.01.23"]
[Round "11"]
[White "ValentunHulka"]
[Black "hakanazeri2"]
[Result "1-0"]
[WhiteElo "2801"]
[BlackElo "2572"]
[TimeControl "180+1"]
[EndTime "10:08:05 PST"]
[Termination "ValentunHulka won on time"]

1. Nc3 {[%clk 0:03:00.9]} 1... c5 {[%clk 0:02:59.8]} 2. Nf3 {[%clk 0:02:54.6]}
2... Nc6 {[%clk 0:02:59.3]} 3. d4 {[%clk 0:02:54.8]} 3... cxd4 {[%clk
0:02:57.7]} 4. Nxd4 {[%clk 0:02:55.7]} 4... Nf6 {[%clk 0:02:54.9]} 5. Bg5 {[%clk
0:02:56.3]} 5... e6 {[%clk 0:02:50.4]} 6. Qd3 {[%clk 0:02:56.4]} 6... h6 {[%clk
0:02:44.8]} 7. Bh4 {[%clk 0:02:53.5]} 7... d5 {[%clk 0:02:43.2]} 8. e4 {[%clk
0:02:53.4]} 8... dxe4 {[%clk 0:01:52.8]} 9. Nxc6 {[%clk 0:02:52]} 9... Qxd3
{[%clk 0:01:49.7]} 10. cxd3 {[%clk 0:02:49.6]} 10... bxc6 {[%clk 0:01:49.8]} 11.
dxe4 {[%clk 0:02:47]} 11... Bb4 {[%clk 0:01:43.9]} 12. f3 {[%clk 0:02:47.6]}
12... Rb8 {[%clk 0:01:38.3]} 13. Kd2 {[%clk 0:02:41.8]} 13... O-O {[%clk
0:01:36.6]} 14. Kc2 {[%clk 0:02:41.7]} 14... Nd7 {[%clk 0:01:14.7]} 15. Bc4
{[%clk 0:02:31.1]} 15... Ne5 {[%clk 0:01:00.7]} 16. Be2 {[%clk 0:02:31.2]} 16...
c5 {[%clk 0:00:43.1]} 17. a3 {[%clk 0:02:24.9]} 17... Bxc3 {[%clk 0:00:41.4]}
18. Kxc3 {[%clk 0:02:25.6]} 18... Nc6 {[%clk 0:00:39.5]} 19. Rhd1 {[%clk
0:02:16.2]} 19... Nd4 {[%clk 0:00:37.4]} 20. Bc4 {[%clk 0:02:15.7]} 20... Bd7
{[%clk 0:00:24.6]} 21. Be7 {[%clk 0:01:50.9]} 21... Rfc8 {[%clk 0:00:23.4]} 22.
Bxc5 {[%clk 0:01:49.2]} 22... Nb5+ {[%clk 0:00:16.9]} 23. Bxb5 {[%clk
0:01:42.9]} 23... Rxc5+ {[%clk 0:00:14.2]} 24. Bc4 {[%clk 0:01:42.3]} 24... Ba4
{[%clk 0:00:14]} 25. Kd4 {[%clk 0:01:11.4]} 25... Rxc4+ {[%clk 0:00:04.6]} 26.
Kxc4 {[%clk 0:01:12.1]} 26... Bxd1 {[%clk 0:00:05.5]} 27. Rxd1 {[%clk 0:01:13]}
27... Rxb2 {[%clk 0:00:06.2]} 28. Rd8+ {[%clk 0:01:13.9]} 28... Kh7 {[%clk
0:00:06.1]} 29. Rd7 {[%clk 0:01:14.8]} 29... Rxg2 {[%clk 0:00:05.4]} 30. Rxf7
{[%clk 0:01:14.3]} 30... Rxh2 {[%clk 0:00:05.7]} 31. Rxa7 {[%clk 0:01:14.7]}
31... h5 {[%clk 0:00:06.3]} 32. Re7 {[%clk 0:01:07.4]} 32... h4 {[%clk 0:00:06]}
33. Rxe6 {[%clk 0:01:07.5]} 33... h3 {[%clk 0:00:06.3]} 34. Re5 {[%clk 0:00:57]}
34... Kg6 {[%clk 0:00:04.3]} 35. Re8 {[%clk 0:00:56.3]} 35... Rc2+ {[%clk
0:00:02.2]} 36. Kd3 {[%clk 0:00:54.8]} 36... Ra2 {[%clk 0:00:01.4]} 37. Ke3
{[%clk 0:00:50.4]} 37... h2 {[%clk 0:00:01.1]} 38. Rh8 {[%clk 0:00:50]} 38...
Kg5 {[%clk 0:00:01.7]} 39. a4 {[%clk 0:00:43.8]} 39... Ra3+ {[%clk 0:00:02]} 40.
Kf2 {[%clk 0:00:44]} 40... Rxa4 {[%clk 0:00:02.2]} 41. Kg3 {[%clk 0:00:38.8]}
41... Ra2 {[%clk 0:00:01.2]} 42. f4+ {[%clk 0:00:39.1]} 42... Kf6 {[%clk
0:00:01.3]} 43. Rxh2 {[%clk 0:00:39.8]} 43... Ra3+ {[%clk 0:00:01.5]} 44. Kg4
{[%clk 0:00:40.3]} 44... g6 {[%clk 0:00:01.5]} 45. Rc2 {[%clk 0:00:40.2]} 45...
Ra1 {[%clk 0:00:01.4]} 46. Rc6+ {[%clk 0:00:40.4]} 46... Kg7 {[%clk 0:00:02.1]}
47. Rc7+ {[%clk 0:00:40.2]} 47... Kf6 {[%clk 0:00:01.6]} 48. e5+ {[%clk
0:00:40.2]} 48... Ke6 {[%clk 0:00:02.2]} 49. Kg5 {[%clk 0:00:31.4]} 49... Rg1+
{[%clk 0:00:02.4]} 50. Kh6 {[%clk 0:00:32.1]} 50... Rg4 {[%clk 0:00:02.8]} 51.
Rc6+ {[%clk 0:00:32.1]} 51... Ke7 {[%clk 0:00:02.5]} 52. Rf6 {[%clk 0:00:30.2]}
52... Rg3 {[%clk 0:00:01]} 53. Rxg6 {[%clk 0:00:29.5]} 1-0

[Event "Early-Titled-Tuesday-Blitz-January-23-2024"]
[Site "Chess.com"]
[Date "2024.01.23"]
[Round "11"]
[White "Njal28"]
[Black "bangchess21"]
[Result "1-0"]
[WhiteElo "3038"]
[BlackElo "2798"]
[TimeControl "180+1"]
[EndTime "10:08:07 PST"]
[Termination "Njal28 won by resignation"]

1. d4 {[%clk 0:03:00.9]} 1... Nf6 {[%clk 0:02:59.9]} 2. c4 {[%clk 0:02:59.9]}
2... e6 {[%clk 0:03:00.5]} 3. Nc3 {[%clk 0:02:58.3]} 3... d5 {[%clk 0:03:01.1]}
4. Bg5 {[%clk 0:02:56.6]} 4... Be7 {[%clk 0:02:59.7]} 5. e3 {[%clk 0:02:53.4]}
5... O-O {[%clk 0:02:59.9]} 6. Nf3 {[%clk 0:02:52.6]} 6... h6 {[%clk 0:02:57.1]}
7. Bxf6 {[%clk 0:02:52.9]} 7... Bxf6 {[%clk 0:02:57.2]} 8. Rc1 {[%clk
0:02:53.2]} 8... a6 {[%clk 0:02:43.7]} 9. a3 {[%clk 0:02:48.1]} 9... Nc6 {[%clk
0:02:32.6]} 10. Be2 {[%clk 0:02:45.8]} 10... dxc4 {[%clk 0:02:18.5]} 11. Bxc4
{[%clk 0:02:46.7]} 11... e5 {[%clk 0:02:19.1]} 12. d5 {[%clk 0:02:46]} 12... Ne7
{[%clk 0:02:19.2]} 13. O-O {[%clk 0:02:43.4]} 13... Nf5 {[%clk 0:02:11.1]} 14.
Bd3 {[%clk 0:02:37]} 14... Nd6 {[%clk 0:02:10.7]} 15. Qc2 {[%clk 0:02:36.6]}
15... Bg4 {[%clk 0:02:10.5]} 16. Nd2 {[%clk 0:02:33.1]} 16... Rc8 {[%clk
0:01:46.8]} 17. h3 {[%clk 0:02:31.4]} 17... Bd7 {[%clk 0:01:46]} 18. Nde4 {[%clk
0:02:27.7]} 18... Be7 {[%clk 0:01:41.7]} 19. Nc5 {[%clk 0:02:25.8]} 19... c6
{[%clk 0:01:26.7]} 20. Nxd7 {[%clk 0:02:22.9]} 20... Qxd7 {[%clk 0:01:26.9]} 21.
dxc6 {[%clk 0:02:21.8]} 21... Rxc6 {[%clk 0:01:22.6]} 22. Rfd1 {[%clk
0:02:19.9]} 22... Qe6 {[%clk 0:01:20.8]} 23. Qe2 {[%clk 0:01:31.6]} 23... e4
{[%clk 0:01:17.1]} 24. Bb1 {[%clk 0:01:32]} 24... Bf6 {[%clk 0:01:16.9]} 25. Ba2
{[%clk 0:01:30.9]} 25... Qc8 {[%clk 0:01:03.7]} 26. Qh5 {[%clk 0:01:13.9]} 26...
Bxc3 {[%clk 0:00:59.4]} 27. Rxc3 {[%clk 0:01:12.3]} 27... Rxc3 {[%clk
0:00:54.8]} 28. bxc3 {[%clk 0:01:13.2]} 28... Qxc3 {[%clk 0:00:55.6]} 29. a4
{[%clk 0:00:31.3]} 29... Ne8 {[%clk 0:00:40.9]} 30. Qd5 {[%clk 0:00:23.5]} 30...
Nf6 {[%clk 0:00:38.8]} 31. Qxb7 {[%clk 0:00:22]} 31... Qc2 {[%clk 0:00:38.1]}
32. Bb3 {[%clk 0:00:20.6]} 32... Qc3 {[%clk 0:00:26.5]} 33. Qb6 {[%clk
0:00:18.4]} 33... a5 {[%clk 0:00:25.8]} 34. Rd8 {[%clk 0:00:10.6]} 34... Qe1+
{[%clk 0:00:13.3]} 35. Kh2 {[%clk 0:00:11]} 35... Qxf2 {[%clk 0:00:13]} 36.
Rxf8+ {[%clk 0:00:11.4]} 36... Kxf8 {[%clk 0:00:13.9]} 37. Qxa5 {[%clk
0:00:01.5]} 37... Qxe3 {[%clk 0:00:13.8]} 38. Qb4+ {[%clk 0:00:01.7]} 38... Kg8
{[%clk 0:00:13.6]} 39. Qb8+ {[%clk 0:00:02.4]} 39... Kh7 {[%clk 0:00:13.5]} 40.
Bxf7 {[%clk 0:00:03.2]} 40... Qa3 {[%clk 0:00:07.8]} 41. Qg3 {[%clk 0:00:03.1]}
41... Qxa4 {[%clk 0:00:05.2]} 42. Bg6+ {[%clk 0:00:03.3]} 42... Kg8 {[%clk
0:00:03.3]} 43. Qb8+ {[%clk 0:00:04.2]} 43... Ne8 {[%clk 0:00:03.5]} 44. Qxe8+
{[%clk 0:00:04.4]} 44... Qxe8 {[%clk 0:00:03.4]} 45. Bxe8 {[%clk 0:00:05.3]}
45... Kf8 {[%clk 0:00:04.3]} 46. Bc6 {[%clk 0:00:05.9]} 46... Ke7 {[%clk
0:00:05.2]} 47. Bxe4 {[%clk 0:00:05.9]} 1-0

[Event "Early-Titled-Tuesday-Blitz-January-23-2024"]
[Site "Chess.com"]
[Date "2024.01.23"]
[Round "11"]
[White "NewYearGirl"]
[Black "only_strong_moves"]
[Result "1-0"]
[WhiteElo "2386"]
[BlackElo "2573"]
[TimeControl "180+1"]
[EndTime "10:08:08 PST"]
[Termination "NewYearGirl won by checkmate"]

1. e4 {[%clk 0:03:00.9]} 1... a6 {[%clk 0:02:58.8]} 2. d4 {[%clk 0:03:00.9]}
2... g6 {[%clk 0:02:57.9]} 3. f4 {[%clk 0:03:00.1]} 3... Bg7 {[%clk 0:02:57.2]}
4. Nc3 {[%clk 0:02:59.3]} 4... c5 {[%clk 0:02:56.1]} 5. dxc5 {[%clk 0:02:57.8]}
5... Qa5 {[%clk 0:02:54.6]} 6. Bd2 {[%clk 0:02:55.8]} 6... Qxc5 {[%clk
0:02:53.9]} 7. Nf3 {[%clk 0:02:56.2]} 7... Nc6 {[%clk 0:02:52.1]} 8. Nd5 {[%clk
0:02:47.9]} 8... Nd4 {[%clk 0:02:46]} 9. Nxd4 {[%clk 0:02:36.8]} 9... Bxd4
{[%clk 0:02:41.2]} 10. Qf3 {[%clk 0:02:29.8]} 10... e6 {[%clk 0:02:37.3]} 11. c3
{[%clk 0:02:12.9]} 11... Bg7 {[%clk 0:02:34.3]} 12. Be3 {[%clk 0:02:10]} 12...
Qc6 {[%clk 0:02:33.4]} 13. Nb6 {[%clk 0:02:07]} 13... Rb8 {[%clk 0:02:33.4]} 14.
e5 {[%clk 0:01:51.8]} 14... d5 {[%clk 0:02:31.4]} 15. exd6 {[%clk 0:01:48.3]}
15... Qxd6 {[%clk 0:02:05.6]} 16. Rd1 {[%clk 0:01:45.3]} 16... Qc6 {[%clk
0:02:01.7]} 17. Nc4 {[%clk 0:01:35.8]} 17... Qxf3 {[%clk 0:01:56.9]} 18. Nd6+
{[%clk 0:01:33.8]} 18... Kf8 {[%clk 0:01:39.2]} 19. gxf3 {[%clk 0:01:32.4]}
19... Bd7 {[%clk 0:01:35.4]} 20. Nxf7 {[%clk 0:01:30.5]} 20... Bc6 {[%clk
0:01:33]} 21. Nxh8 {[%clk 0:01:24.2]} 21... Bxf3 {[%clk 0:01:29]} 22. Rd7 {[%clk
0:01:17.1]} 22... Bxh8 {[%clk 0:01:19.3]} 23. Rg1 {[%clk 0:01:12.4]} 23... Bc6
{[%clk 0:01:15.4]} 24. Rxh7 {[%clk 0:01:12.2]} 24... Bf6 {[%clk 0:01:05.4]} 25.
f5 {[%clk 0:01:07.6]} 25... exf5 {[%clk 0:00:55.1]} 26. Rxg6 {[%clk 0:01:04.4]}
26... Re8 {[%clk 0:00:47.6]} 27. Kf2 {[%clk 0:01:02.5]} 27... Re6 {[%clk
0:00:29.3]} 28. Kg1 {[%clk 0:00:47.8]} 28... Rxe3 {[%clk 0:00:24.1]} 29. Bc4
{[%clk 0:00:44.7]} 29... Ne7 {[%clk 0:00:06]} 30. Rxf6+ {[%clk 0:00:42.1]} 30...
Ke8 {[%clk 0:00:06.7]} 31. Be6 {[%clk 0:00:24.1]} 31... Kd8 {[%clk 0:00:04]} 32.
Rf8+ {[%clk 0:00:22.8]} 32... Be8 {[%clk 0:00:04.7]} 33. Rhh8 {[%clk 0:00:19.4]}
33... Rxe6 {[%clk 0:00:03.7]} 34. Rxe8+ {[%clk 0:00:20]} 34... Kd7 {[%clk
0:00:04.6]} 35. Rb8 {[%clk 0:00:20.1]} 35... Rb6 {[%clk 0:00:04.4]} 36. Rh7
{[%clk 0:00:20]} 36... Rxb2 {[%clk 0:00:03.9]} 37. h4 {[%clk 0:00:19.6]} 37...
Ke6 {[%clk 0:00:04]} 38. Re8 {[%clk 0:00:19.2]} 38... Rb1+ {[%clk 0:00:03.3]}
39. Kh2 {[%clk 0:00:19.2]} 39... Rb2+ {[%clk 0:00:04.2]} 40. Kg3 {[%clk
0:00:19.6]} 40... f4+ {[%clk 0:00:03.5]} 41. Kxf4 {[%clk 0:00:19.7]} 41... Rf2+
{[%clk 0:00:03.7]} 42. Kg3 {[%clk 0:00:20.4]} 42... Rf7 {[%clk 0:00:03.3]} 43.
Rxf7 {[%clk 0:00:20.8]} 43... Kxf7 {[%clk 0:00:04.2]} 44. Rb8 {[%clk 0:00:21.6]}
44... b5 {[%clk 0:00:03.9]} 45. h5 {[%clk 0:00:21.5]} 45... Nf5+ {[%clk
0:00:03.9]} 46. Kg4 {[%clk 0:00:21.6]} 46... Ne7 {[%clk 0:00:04.8]} 47. Rb7
{[%clk 0:00:21.7]} 47... Kf6 {[%clk 0:00:04.9]} 48. h6 {[%clk 0:00:22.1]} 48...
Nc6 {[%clk 0:00:03.7]} 49. Rb6 {[%clk 0:00:22.4]} 49... Kg6 {[%clk 0:00:02.4]}
50. Rxc6+ {[%clk 0:00:23.3]} 50... Kh7 {[%clk 0:00:02.6]} 51. Rxa6 {[%clk
0:00:24.2]} 51... b4 {[%clk 0:00:02.3]} 52. Rb6 {[%clk 0:00:25.1]} 52... Kh8
{[%clk 0:00:02.6]} 53. Rxb4 {[%clk 0:00:25.3]} 53... Kh7 {[%clk 0:00:03.2]} 54.
Rb6 {[%clk 0:00:26.2]} 54... Kh8 {[%clk 0:00:03.4]} 55. Kg5 {[%clk 0:00:26.9]}
55... Kh7 {[%clk 0:00:04.3]} 56. Rc6 {[%clk 0:00:27.4]} 56... Kh8 {[%clk
0:00:05.2]} 57. Kg6 {[%clk 0:00:27.9]} 57... Kg8 {[%clk 0:00:05.6]} 58. Rc8#
{[%clk 0:00:28.8]} 1-0

[Event "Early-Titled-Tuesday-Blitz-January-23-2024"]
[Site "Chess.com"]
[Date "2024.01.23"]
[Round "11"]
[White "crazy_m_attack"]
[Black "KevinGeorgeMicheal"]
[Result "0-1"]
[WhiteElo "2436"]
[BlackElo "2360"]
[TimeControl "180+1"]
[EndTime "10:08:10 PST"]
[Termination "KevinGeorgeMicheal won on time"]

1. e4 {[%clk 0:03:00.9]} 1... e5 {[%clk 0:02:34.1]} 2. Nf3 {[%clk 0:02:59]} 2...
Nc6 {[%clk 0:02:33.8]} 3. Bb5 {[%clk 0:02:58.9]} 3... a6 {[%clk 0:02:32.3]} 4.
Ba4 {[%clk 0:02:59]} 4... Nf6 {[%clk 0:02:32]} 5. O-O {[%clk 0:02:59.1]} 5... d6
{[%clk 0:02:27.9]} 6. c3 {[%clk 0:02:58.3]} 6... b5 {[%clk 0:02:25.7]} 7. Bb3
{[%clk 0:02:56.2]} 7... Be7 {[%clk 0:02:25.7]} 8. d4 {[%clk 0:02:56.3]} 8... O-O
{[%clk 0:02:25.7]} 9. h3 {[%clk 0:02:55.1]} 9... Bb7 {[%clk 0:02:21.6]} 10. Re1
{[%clk 0:02:54.1]} 10... Re8 {[%clk 0:02:18.6]} 11. Ng5 {[%clk 0:02:48.1]} 11...
Rf8 {[%clk 0:02:17.4]} 12. Qd3 {[%clk 0:02:40.9]} 12... Na5 {[%clk 0:02:07.6]}
13. Bc2 {[%clk 0:02:38.9]} 13... c5 {[%clk 0:01:56.5]} 14. Nf3 {[%clk
0:02:17.9]} 14... cxd4 {[%clk 0:01:47.8]} 15. cxd4 {[%clk 0:02:18.8]} 15... Nd7
{[%clk 0:01:47.4]} 16. Nc3 {[%clk 0:02:15.8]} 16... Rc8 {[%clk 0:01:46.5]} 17.
Nd5 {[%clk 0:02:12.5]} 17... Nc4 {[%clk 0:01:26.4]} 18. b3 {[%clk 0:02:07]}
18... Ncb6 {[%clk 0:01:25.4]} 19. Nxe7+ {[%clk 0:02:06]} 19... Qxe7 {[%clk
0:01:24.4]} 20. Ba3 {[%clk 0:02:03.9]} 20... Rfd8 {[%clk 0:01:10.8]} 21. Rad1
{[%clk 0:01:53.5]} 21... exd4 {[%clk 0:00:49.7]} 22. Nxd4 {[%clk 0:01:33.6]}
22... Nc5 {[%clk 0:00:45.2]} 23. Qg3 {[%clk 0:01:29.7]} 23... Qe5 {[%clk
0:00:18.4]} 24. f4 {[%clk 0:01:22.5]} 24... Qf6 {[%clk 0:00:17.4]} 25. Bb2
{[%clk 0:01:13.3]} 25... Qg6 {[%clk 0:00:16.8]} 26. Qf2 {[%clk 0:01:05.4]} 26...
Nxe4 {[%clk 0:00:15.5]} 27. Bxe4 {[%clk 0:01:05.2]} 27... Bxe4 {[%clk
0:00:15.7]} 28. f5 {[%clk 0:01:05.6]} 28... Qh5 {[%clk 0:00:15.5]} 29. g4 {[%clk
0:00:57.8]} 29... Qxh3 {[%clk 0:00:15.6]} 30. Rxe4 {[%clk 0:00:57.8]} 30... d5
{[%clk 0:00:15.1]} 31. Rf4 {[%clk 0:00:53]} 31... Re8 {[%clk 0:00:15.3]} 32. Nf3
{[%clk 0:00:39]} 32... Rc2 {[%clk 0:00:13.8]} 33. Qxc2 {[%clk 0:00:31.9]} 33...
Qg3+ {[%clk 0:00:13.9]} 34. Qg2 {[%clk 0:00:32.1]} 34... Qxf4 {[%clk 0:00:14.6]}
35. Bd4 {[%clk 0:00:24.1]} 35... Nd7 {[%clk 0:00:13.4]} 36. Bf2 {[%clk
0:00:10.7]} 36... Nf6 {[%clk 0:00:12]} 37. g5 {[%clk 0:00:10]} 37... Ne4 {[%clk
0:00:11.6]} 38. Bd4 {[%clk 0:00:06.8]} 38... Qxf5 {[%clk 0:00:10.1]} 39. Rf1
{[%clk 0:00:05.7]} 39... Qe6 {[%clk 0:00:08]} 40. Ne5 {[%clk 0:00:05.3]} 40...
Rf8 {[%clk 0:00:07.6]} 41. Qg4 {[%clk 0:00:03.8]} 41... Qe7 {[%clk 0:00:06.8]}
42. Qf5 {[%clk 0:00:02.2]} 42... Nd6 {[%clk 0:00:04.7]} 43. Qf4 {[%clk
0:00:02.3]} 43... Ne4 {[%clk 0:00:04.8]} 44. Re1 {[%clk 0:00:01.4]} 44... Nxg5
{[%clk 0:00:04.7]} 0-1

[Event "Early-Titled-Tuesday-Blitz-January-23-2024"]
[Site "Chess.com"]
[Date "2024.01.23"]
[Round "11"]
[White "GMKrikor"]
[Black "Alexei_Gubajdullin"]
[Result "0-1"]
[WhiteElo "2777"]
[BlackElo "2599"]
[TimeControl "180+1"]
[EndTime "10:08:11 PST"]
[Termination "Alexei_Gubajdullin won on time"]

1. Nf3 {[%clk 0:03:00.9]} 1... Nf6 {[%clk 0:02:59.8]} 2. c4 {[%clk 0:03:01.2]}
2... c6 {[%clk 0:02:59.7]} 3. d4 {[%clk 0:03:01]} 3... d5 {[%clk 0:03:00.1]} 4.
Nc3 {[%clk 0:03:01.8]} 4... dxc4 {[%clk 0:02:59.8]} 5. a4 {[%clk 0:03:01.2]}
5... Bf5 {[%clk 0:02:59.6]} 6. Nh4 {[%clk 0:03:01.3]} 6... Bc8 {[%clk
0:02:58.8]} 7. e3 {[%clk 0:03:01]} 7... g6 {[%clk 0:02:57.8]} 8. Bxc4 {[%clk
0:03:00.5]} 8... Bg7 {[%clk 0:02:58]} 9. O-O {[%clk 0:02:59.4]} 9... O-O {[%clk
0:02:58.1]} 10. Nf3 {[%clk 0:02:59]} 10... c5 {[%clk 0:02:56.8]} 11. d5 {[%clk
0:02:47.2]} 11... Bg4 {[%clk 0:02:56]} 12. h3 {[%clk 0:02:47.3]} 12... Bxf3
{[%clk 0:02:56.1]} 13. Qxf3 {[%clk 0:02:48.2]} 13... Na6 {[%clk 0:02:56.5]} 14.
Rd1 {[%clk 0:02:46.9]} 14... Nb4 {[%clk 0:02:55.5]} 15. Qe2 {[%clk 0:02:47]}
15... Nd7 {[%clk 0:02:54.3]} 16. a5 {[%clk 0:02:34.7]} 16... b6 {[%clk
0:02:51.5]} 17. a6 {[%clk 0:02:32.9]} 17... Kh8 {[%clk 0:02:43]} 18. Bb5 {[%clk
0:02:30.8]} 18... Qc7 {[%clk 0:02:22]} 19. e4 {[%clk 0:02:13.6]} 19... Rad8
{[%clk 0:02:21.3]} 20. Bg5 {[%clk 0:02:10]} 20... Bf6 {[%clk 0:02:01.2]} 21.
Bxf6+ {[%clk 0:01:36.3]} 21... Nxf6 {[%clk 0:01:59.1]} 22. e5 {[%clk 0:01:33.9]}
22... Nfxd5 {[%clk 0:01:57.1]} 23. e6 {[%clk 0:01:18]} 23... Nf4 {[%clk
0:01:53.9]} 24. Qe4 {[%clk 0:00:53.8]} 24... Nxe6 {[%clk 0:01:52.5]} 25. Bc4
{[%clk 0:00:54.3]} 25... Rxd1+ {[%clk 0:01:45.1]} 26. Rxd1 {[%clk 0:00:53.8]}
26... Nd4 {[%clk 0:01:44.7]} 27. Re1 {[%clk 0:00:53]} 27... e6 {[%clk
0:01:43.1]} 28. h4 {[%clk 0:00:52.9]} 28... h5 {[%clk 0:01:36.3]} 29. Re3 {[%clk
0:00:37.6]} 29... Nbc2 {[%clk 0:01:24.4]} 30. Rg3 {[%clk 0:00:31]} 30... Kg7
{[%clk 0:01:18.5]} 31. Bd3 {[%clk 0:00:25.3]} 31... Nb4 {[%clk 0:01:10.9]} 32.
Bc4 {[%clk 0:00:12.7]} 32... Qe7 {[%clk 0:01:08.5]} 33. Qe5+ {[%clk 0:00:09.8]}
33... Kh7 {[%clk 0:01:00]} 34. Ne4 {[%clk 0:00:09.9]} 34... f6 {[%clk 0:00:58]}
35. Qf4 {[%clk 0:00:02.6]} 35... e5 {[%clk 0:00:51.8]} 36. Qc1 {[%clk
0:00:01.4]} 36... b5 {[%clk 0:00:50.5]} 37. Bf1 {[%clk 0:00:01.6]} 37... c4
{[%clk 0:00:50.5]} 38. Kh1 {[%clk 0:00:02.1]} 38... Nd3 {[%clk 0:00:49.8]} 39.
Bxd3 {[%clk 0:00:02.3]} 39... cxd3 {[%clk 0:00:49.9]} 40. Rxd3 {[%clk
0:00:03.2]} 40... b4 {[%clk 0:00:35.2]} 41. Rd1 {[%clk 0:00:02.7]} 41... Kg7
{[%clk 0:00:33.9]} 42. Qe3 {[%clk 0:00:02.9]} 42... Qe6 {[%clk 0:00:29.5]} 43.
Kh2 {[%clk 0:00:03]} 43... Qxa6 {[%clk 0:00:27]} 44. Rc1 {[%clk 0:00:03.1]}
44... Rf7 {[%clk 0:00:25.9]} 45. Nc5 {[%clk 0:00:02.7]} 45... Qd6 {[%clk
0:00:24.3]} 46. Ne4 {[%clk 0:00:03.2]} 46... Qe6 {[%clk 0:00:24.3]} 47. Ra1
{[%clk 0:00:03.3]} 47... Qf5 {[%clk 0:00:23.5]} 48. g3 {[%clk 0:00:02.7]} 48...
Qg4 {[%clk 0:00:17.6]} 49. Kg2 {[%clk 0:00:02.9]} 49... Qd7 {[%clk 0:00:14.8]}
50. Ra6 {[%clk 0:00:02.9]} 50... Qb7 {[%clk 0:00:14.3]} 51. Qd3 {[%clk
0:00:02.4]} 51... f5 {[%clk 0:00:13.8]} 0-1